bitfinex/quotes_SOLUSD_20240703
["timestamp","ask_amount","ask_price","bid_price","bid_amount"]
[1720002844359,0.1663826,144.28,144.07,100.0]
[1720002844668,0.1663826,144.28,144.13,100.0]
[1720002845242,0.1663826,144.28,144.17,100.0]
[1720002845466,0.1663826,144.28,144.13,100.0]
[1720002845657,0.1663826,144.28,144.19,100.0]
[1720002845864,0.1663826,144.28,144.19,200.0]
[1720002846244,0.1663826,144.28,144.19,100.0]
[1720002846550,0.1663826,144.28,144.21,100.0]
[1720002846758,0.1663826,144.28,144.2,100.0]
[1720002846954,0.1663826,144.28,144.19,100.0]
[1720002847151,0.1663826,144.28,144.21,100.0]
[1720002847355,0.1663826,144.28,144.17,100.0]
[1720002847554,0.1663826,144.28,144.08,15.7835]
[1720002847555,0.1663826,144.28,144.21,100.0]
[1720002847756,0.1663826,144.28,144.14,200.0]
[1720002847963,0.1663826,144.28,144.1,100.0]
[1720002848162,0.1663826,144.28,144.14,100.0]
[1720002848373,0.1663826,144.28,144.14,200.0]
[1720002848755,0.1663826,144.28,144.18,100.0]
[1720002848963,0.1663826,144.28,144.18,200.0]
[1720002849166,0.1663826,144.28,144.22,100.0]
[1720002849468,0.1663826,144.28,144.21,100.0]
[1720002849645,0.1663826,144.28,144.17,100.0]
[1720002849851,0.1663826,144.28,144.19,100.0]
[1720002850066,0.1663826,144.28,144.15,200.0]
[1720002850381,0.1663826,144.28,144.13,200.0]
[1720002850683,0.1663826,144.28,144.15,200.0]
[1720002850980,0.1663826,144.28,144.17,100.0]
[1720002851145,0.1663826,144.28,144.15,100.0]
[1720002851342,0.1663826,144.28,144.18,100.0]
[1720002851571,0.1663826,144.28,144.17,100.0]
[1720002851949,0.1663826,144.28,144.18,100.0]
[1720002852143,0.1663826,144.28,144.08,15.7835]
[1720002852144,0.1663826,144.28,144.2,100.0]
[1720002852348,0.1663826,144.28,144.22,100.0]
[1720002852655,0.1663826,144.28,144.08,395.7835]
[1720002852656,0.1663826,144.28,144.25,100.0]
[1720002852874,1e-08,144.28,144.27,100.0]
[1720002853082,0.9179908,144.4,144.29,200.0]
[1720002853380,0.9179908,144.4,144.27,25.0]
[1720002853381,0.9179908,144.4,144.27,100.0]
[1720002853587,0.9179908,144.4,144.29,100.0]
[1720002853748,0.9179908,144.4,144.25,100.0]
[1720002853944,0.9179908,144.4,144.28,100.0]
[1720002854154,0.9179908,144.4,144.27,100.0]
[1720002854457,0.9179908,144.4,144.29,200.0]
[1720002854977,0.9179908,144.4,144.31,200.0]
[1720002855545,0.9179908,144.4,144.33,100.0]
[1720002855962,0.9179908,144.4,144.27,200.0]
[1720002856191,0.9179908,144.4,144.29,100.0]
[1720002856477,0.9179908,144.4,144.3,100.0]
[1720002856772,0.9179908,144.4,144.33,100.0]
[1720002856977,0.9179908,144.4,144.35,100.0]
[1720002857481,0.9179908,144.4,144.38,200.0]
[1720002857949,0.9179908,144.4,144.39,100.0]
[1720002858355,0.9179908,144.56,144.43,200.0]
[1720002858553,0.9179908,144.56,144.46,100.0]
[1720002861350,0.9179908,144.56,144.55,200.0]
[1720002861880,0.9179908,144.56,144.55,100.0]
[1720002862377,0.9179908,144.56,144.51,100.0]
[1720002862594,0.9179908,144.56,144.46,6.259]
[1720002862595,0.9179908,144.56,144.49,100.0]
[1720002862882,0.9179908,144.56,144.53,100.0]
[1720002863058,0.9179908,144.56,144.55,100.0]
[1720002863261,0.9179908,144.56,144.54,100.0]
[1720002863451,0.9179908,144.56,144.55,100.0]
[1720002863657,0.9179908,144.72,144.53,100.0]
[1720002864158,0.9179908,144.72,144.51,100.0]
[1720002864365,0.9179908,144.72,144.52,100.0]
[1720002864750,0.9179908,144.72,144.54,100.0]
[1720002864946,0.9179908,144.72,144.5,100.0]
[1720002865152,0.9179908,144.72,144.52,100.0]
[1720002865352,0.9179908,144.72,144.5,100.0]
[1720002865579,0.9179908,144.72,144.49,100.0]
[1720002865783,0.9179908,144.72,144.46,6.259]
[1720002865989,0.9179908,144.72,144.45,100.0]
[1720002866200,0.9179908,144.72,144.46,100.0]
[1720002866504,0.9179908,144.72,144.47,100.0]
[1720002866675,25.9179908,144.72,144.45,200.0]
[1720002866873,125.0,144.7,144.41,200.0]
[1720002867075,25.0,144.66,144.41,200.0]
[1720002867285,1.0615,144.67,144.41,200.0]
[1720002867488,1.0615,144.67,144.43,200.0]
[1720002867700,1.0615,144.67,144.44,2.17123345]
[1720002868593,0.9177,144.66,144.44,2.17123345]
[1720002868898,0.9177,144.66,144.44,102.17123345]
[1720002869200,0.9177,144.66,144.44,2.17123345]
[1720002869569,0.9177,144.66,144.47,100.0]
[1720002869886,0.9177,144.66,144.48,100.0]
[1720002870088,0.9177,144.66,144.46,100.0]
[1720002870493,0.9177,144.66,144.44,202.17123345]
[1720002870694,0.9177,144.66,144.48,100.0]
[1720002870873,0.9177,144.66,144.49,2.17048211]
[1720002871203,0.9177,144.66,144.5,100.0]
[1720002871700,0.9177,144.66,144.49,2.17048211]
[1720002871889,0.9177,144.66,144.5,2.1703319]
[1720002872404,0.9177,144.66,144.42,100.0]
[1720002872606,0.9177,144.66,144.43,2.17138379]
[1720002872977,125.9177,144.66,144.38,100.0]
[1720002873291,125.9177,144.66,144.39,202.17198532]
[1720002873292,0.9177,144.66,144.39,202.17198532]
[1720002873500,25.0,144.65,144.4,2.1718349]
[1720002873804,25.9177,144.66,144.4,2.1718349]
[1720002873982,0.9177,144.66,144.42,100.0]
[1720002874490,0.9177,144.66,144.4,102.1718349]
[1720002874491,0.9177,144.66,144.44,200.0]
[1720002874692,0.9177,144.66,144.46,100.0]
[1720002874995,0.9177,144.66,144.47,2.17078259]
[1720002875779,0.9177,144.66,144.4,100.0]
[1720002875995,1.0249446,144.66,144.41,2.17168451]
[1720002876194,1.0249446,144.66,144.42,200.0]
[1720002876604,1.0249446,144.66,144.46,100.0]
[1720002876783,1.0249446,144.66,144.44,100.0]
[1720002876973,1.0249446,144.66,144.45,2.17108314]
[1720002877711,1.0249446,144.66,144.33,663.9]
[1720002877712,25.0,144.62,144.35,100.0]
[1720002877901,1.9792,144.63,144.37,100.0]
[1720002878277,1.9792,144.63,144.39,200.0]
[1720002879198,1.9792,144.63,144.4,2.1718349]
[1720002879399,25.0,144.62,144.4,2.1718349]
[1720002879609,7.86585609,144.63,144.4,2.1718349]
[1720002879773,0.9177,144.61,144.4,2.1718349]
[1720002879975,4.84,144.57,144.4,2.1718349]
[1720002880996,4.84,144.57,144.4,102.1718349]
[1720002881182,4.84,144.57,144.42,100.0]
[1720002881379,4.84,144.57,144.43,102.17138379]
[1720002881574,4.84,144.57,144.44,100.0]
[1720002881785,4.84,144.57,144.45,2.17108314]
[1720002883099,4.84,144.57,144.41,100.0]
[1720002883480,4.84,144.57,144.38,100.0]
[1720002883680,4.84,144.57,144.37,100.0]
[1720002883890,44.4,144.53,144.34,100.0]
[1720002884403,1.0615,144.51,144.3,100.0]
[1720002884594,44.4,144.49,144.32,200.0]
[1720002884984,44.4,144.49,144.32,100.0]
[1720002885485,44.4,144.49,144.33,100.0]
[1720002886095,1.0615,144.51,144.37,100.0]
[1720002886304,0.9177,144.52,144.42,100.0]
[1720002886485,0.9177,144.52,144.4,200.0]
[1720002886683,5.9015,144.57,144.44,200.0]
[1720002887097,5.9015,144.57,144.46,100.0]
[1720002887284,5.9015,144.57,144.41,2.17168451]
[1720002887285,4.84,144.57,144.5,100.0]
[1720002887606,4.84,144.57,144.46,100.0]
[1720002887797,4.84,144.57,144.48,100.0]
[1720002888107,4.84,144.57,144.49,100.0]
[1720002888288,4.84,144.57,144.48,100.0]
[1720002888488,4.84,144.57,144.49,2.17048211]
[1720002889103,4.84,144.57,144.5,100.0]
[1720002889688,4.84,144.57,144.51,2.17018172]
[1720002890792,4.84,144.57,144.46,100.0]
[1720002890991,4.9472446,144.57,144.47,102.17078259]
[1720002891388,4.9472446,144.57,144.49,100.0]
[1720002891582,4.9472446,144.57,144.5,100.0]
[1720002891806,4.9472446,144.57,144.48,100.0]
[1720002892003,4.9472446,144.57,144.49,102.17048211]
[1720002892208,4.9472446,144.57,144.5,100.0]
[1720002892391,4.9472446,144.57,144.49,102.17048211]
[1720002892592,4.9472446,144.57,144.49,2.17048211]
[1720002893414,4.9472446,144.57,144.5,2.1703319]
[1720002894085,4.9472446,144.57,144.51,200.0]
[1720002894284,4.9472446,144.57,144.52,2.17003155]
[1720002894702,4.9472446,144.57,144.55,100.0]
[1720002895208,4.9472446,144.57,144.56,100.0]
[1720002895709,4.9472446,144.57,144.55,100.0]
[1720002895895,4.9472446,144.57,144.56,100.0]
[1720002896702,4.9472446,144.57,144.55,100.0]
[1720002896915,4.9472446,144.57,144.56,100.0]
[1720002897814,4.9472446,144.57,144.55,100.0]
[1720002897996,4.9472446,144.57,144.56,2.1694311]
[1720002898195,4.9472446,144.57,144.56,102.1694311]
[1720002898413,4.9472446,144.57,144.56,2.1694311]
[1720002899927,1.0615,144.73,144.6,100.0]
[1720002900217,1.0615,144.73,144.61,102.16868101]
[1720002900398,1.0615,144.73,144.62,2.16853105]
[1720002901515,1.0615,144.73,144.62,102.16853105]
[1720002901902,1.0615,144.73,144.62,2.16853105]
[1720002902516,44.4,144.72,144.62,2.16853105]
[1720002902723,44.4,144.72,144.5,100.0]
[1720002902724,0.9177,144.7,144.5,100.0]
[1720002902917,44.4,144.68,144.5,100.0]
[1720002903123,44.4,144.68,144.47,100.0]
[1720002903297,44.4,144.64,144.46,258.9]
[1720002903499,0.9177,144.63,144.45,200.0]
[1720002903812,3.8385,144.62,144.47,100.0]
[1720002904698,3.8385,144.62,144.49,100.0]
[1720002904920,3.8385,144.62,144.45,100.0]
[1720002905104,3.8385,144.62,144.46,100.0]
[1720002905301,3.8385,144.62,144.45,100.0]
[1720002906330,3.8385,144.62,144.43,200.0]
[1720002906509,3.8385,144.62,144.45,100.0]
[1720002906840,3.8385,144.62,144.49,100.0]
[1720002907002,3.8385,144.62,144.47,100.0]
[1720002907199,3.8385,144.62,144.45,200.0]
[1720002907799,3.8385,144.62,144.45,100.0]
[1720002907995,44.4,144.6,144.42,100.0]
[1720002908410,44.4,144.6,144.44,200.0]
[1720002908723,48.2385,144.62,144.44,200.0]
[1720002909025,48.2385,144.62,144.46,200.0]
[1720002909411,48.2385,144.62,144.49,100.0]
[1720002909725,3.8385,144.62,144.5,100.0]
[1720002909933,3.8385,144.62,144.49,100.0]
[1720002910115,3.8385,144.62,144.46,200.0]
[1720002910298,3.8385,144.62,144.49,100.0]
[1720002910998,3.8385,144.62,144.42,200.0]
[1720002911216,44.4,144.6,144.4,838.9]
[1720002911419,0.9177,144.59,144.4,580.0]
[1720002911922,44.4,144.55,144.4,380.0]
[1720002912313,3.8385,144.5,144.32,200.0]
[1720002912629,3.8385,144.5,144.29,265.3716]
[1720002912630,44.4,144.47,144.29,100.0]
[1720002912937,44.4,144.47,144.31,100.0]
[1720002913108,44.4,144.47,144.33,100.0]
[1720002913448,0.9177,144.49,144.34,100.0]
[1720002913603,0.9177,144.49,144.32,200.0]
[1720002913806,0.9177,144.49,144.3,200.0]
[1720002914019,44.4,144.48,144.34,100.0]
[1720002914529,0.9177,144.49,144.4,100.0]
[1720002914710,4.7562,144.57,144.42,100.0]
[1720002914910,4.7562,144.57,144.42,200.0]
[1720002915146,4.7562,144.57,144.44,100.0]
[1720002915437,4.7562,144.57,144.41,100.0]
[1720002915611,4.7562,144.57,144.37,200.0]
[1720002915816,44.4,144.54,144.35,458.9]
[1720002916209,44.4,144.54,144.35,358.9]
[1720002916407,44.4,144.5,144.31,100.0]
[1720002916812,3.8385,144.52,144.34,100.0]
[1720002917114,3.8385,144.52,144.35,100.0]
[1720002917321,3.8385,144.52,144.36,100.0]
[1720002917528,3.8385,144.52,144.37,100.0]
[1720002918031,3.8385,144.52,144.38,100.0]
[1720002918204,3.8385,144.52,144.37,100.0]
[1720002918410,3.8385,144.52,144.38,100.0]
[1720002918622,3.8385,144.52,144.39,100.0]
[1720002918816,3.8385,144.52,144.32,44.4]
[1720002918817,3.8385,144.52,144.37,100.0]
[1720002919427,3.8385,144.52,144.36,100.0]
[1720002919631,3.8385,144.52,144.39,100.0]
[1720002919835,3.8385,144.52,144.41,100.0]
[1720002920033,3.8385,144.52,144.41,200.0]
[1720002920431,3.8385,144.52,144.44,100.0]
[1720002920817,4.7562,144.59,144.46,200.0]
[1720002921021,4.7562,144.59,144.48,100.0]
[1720002921221,4.7562,144.59,144.46,100.0]
[1720002921535,4.7078,144.59,144.47,100.0]
[1720002921833,4.7078,144.59,144.51,100.0]
[1720002922426,0.9177,144.59,144.51,100.0]
[1720002922625,0.9177,144.66,144.51,100.0]
[1720002922812,0.9177,144.66,144.53,100.0]
[1720002924120,0.9177,144.66,144.51,100.0]
[1720002924320,0.9177,144.66,144.49,100.0]
[1720002924630,44.4,144.63,144.45,100.0]
[1720002924836,0.9177,144.62,144.41,100.0]
[1720002925134,0.9177,144.62,144.42,100.0]
[1720002925446,45.3177,144.62,144.43,100.0]
[1720002925622,44.4,144.61,144.45,100.0]
[1720002925936,44.4,144.61,144.43,100.0]
[1720002926138,44.4,144.61,144.42,100.0]
[1720002926513,44.4,144.61,144.44,100.0]
[1720002927149,44.4,144.61,144.4,200.0]
[1720002927319,3.7901,144.6,144.4,200.0]
[1720002927520,3.7901,144.6,144.44,100.0]
[1720002927725,3.7901,144.6,144.44,200.0]
[1720002927928,3.7901,144.6,144.44,100.0]
[1720002928241,3.7901,144.6,144.43,100.0]
[1720002928746,48.1901,144.6,144.45,100.0]
[1720002929245,48.1901,144.6,144.47,100.0]
[1720002929550,3.7901,144.6,144.44,100.0]
[1720002929755,3.7901,144.6,144.47,200.0]
[1720002931024,3.7901,144.6,144.45,200.0]
[1720002931225,3.7901,144.6,144.45,100.0]
[1720002931436,3.7901,144.6,144.43,100.0]
[1720002931632,48.1901,144.6,144.41,100.0]
[1720002932540,48.1901,144.6,144.46,100.0]
[1720002932744,3.7901,144.6,144.46,100.0]
[1720002932947,3.7901,144.6,144.46,200.0]
[1720002933243,3.7901,144.6,144.44,200.0]
[1720002933618,3.7901,144.6,144.46,200.0]
[1720002933825,3.7901,144.6,144.46,100.0]
[1720002934026,3.7901,144.6,144.48,100.0]
[1720002934246,3.7901,144.6,144.5,100.0]
[1720002935144,3.7901,144.6,144.52,100.0]
[1720002935342,0.9177,144.62,144.52,100.0]
[1720002935857,0.9177,144.62,144.51,100.0]
[1720002936426,0.9177,144.62,144.5,100.0]
[1720002936647,0.9177,144.62,144.47,100.0]
[1720002936843,0.9177,144.62,144.45,15.42]
[1720002936844,0.9177,144.62,144.52,100.0]
[1720002937242,0.9177,144.62,144.54,100.0]
[1720002937847,0.9177,144.62,144.55,100.0]
[1720002938143,3.7901,144.66,144.55,100.0]
[1720002938144,3.7901,144.66,144.56,100.0]
[1720002938825,3.7901,144.66,144.53,100.0]
[1720002939032,3.7901,144.66,144.59,100.0]
[1720002939237,3.7901,144.66,144.57,100.0]
[1720002939526,0.9177,144.67,144.58,100.0]
[1720002940057,0.9177,144.67,144.57,100.0]
[1720002940058,0.9177,144.67,144.56,100.0]
[1720002940449,0.9177,144.67,144.55,200.0]
[1720002940633,2.64,144.66,144.55,200.0]
[1720002940828,2.64,144.66,144.57,200.0]
[1720002941022,2.64,144.66,144.59,100.0]
[1720002941238,2.64,144.66,144.57,100.0]
[1720002942560,2.64,144.66,144.53,100.0]
[1720002942758,2.64,144.66,144.5,100.0]
[1720002943339,3.7901,144.64,144.49,100.0]
[1720002943557,3.7901,144.64,144.49,200.0]
[1720002943930,3.7901,144.64,144.46,638.9]
[1720002943931,3.7901,144.64,144.53,100.0]
[1720002944347,3.7901,144.64,144.53,200.0]
[1720002944558,2.64,144.66,144.56,100.0]
[1720002944855,2.64,144.66,144.58,100.0]
[1720002945430,2.64,144.66,144.56,100.0]
[1720002946039,2.64,144.66,144.58,100.0]
[1720002946858,2.64,144.66,144.59,100.0]
[1720002947152,2.64,144.66,144.62,100.0]
[1720002947326,2.64,144.66,144.64,100.0]
[1720002947527,0.9177,144.72,144.64,100.0]
[1720002948763,0.9177,144.72,144.62,100.0]
[1720002948945,0.9177,144.72,144.59,200.0]
[1720002949364,0.9177,144.72,144.59,100.0]
[1720002949668,0.9177,144.72,144.6,100.0]
[1720002949874,0.9177,144.72,144.61,100.0]
[1720002950553,0.9177,144.72,144.64,100.0]
[1720002950741,0.9177,144.72,144.62,100.0]
[1720002951249,0.9177,144.72,144.57,100.0]
[1720002951553,0.9177,144.72,144.53,386.1862]
[1720002951554,0.9177,144.72,144.63,100.0]
[1720002952355,0.9177,144.72,144.65,100.0]
[1720002952543,0.9177,144.72,144.63,100.0]
[1720002953072,0.9177,144.72,144.65,100.0]
[1720002953247,0.9177,144.72,144.67,100.0]
[1720002953577,3.7901,144.75,144.67,100.0]
[1720002954355,0.9177,144.76,144.65,100.0]
[1720002954539,0.9177,144.76,144.66,100.0]
[1720002955355,0.9177,144.76,144.68,100.0]
[1720002955667,0.04109053,144.78,144.68,100.0]
[1720002956162,0.04109053,144.78,144.66,100.0]
[1720002956350,0.04109053,144.78,144.68,100.0]
[1720002956962,0.04109053,144.78,144.66,100.0]
[1720002957555,0.04109053,144.78,144.64,100.0]
[1720002957859,0.04109053,144.78,144.62,100.0]
[1720002958459,0.04109053,144.78,144.61,100.0]
[1720002958653,0.04109053,144.78,144.55,683.3]
[1720002958654,0.9177,144.7,144.56,100.0]
[1720002958853,3.7901,144.69,144.56,100.0]
[1720002959047,3.7901,144.69,144.54,100.0]
[1720002959773,3.7901,144.69,144.56,100.0]
[1720002960151,3.7901,144.69,144.58,100.0]
[1720002960560,3.7901,144.69,144.48,713.93055987]
[1720002960561,3.7901,144.69,144.56,100.0]
[1720002960877,3.7901,144.69,144.57,100.0]
[1720002961063,3.7901,144.69,144.55,100.0]
[1720002961260,3.7901,144.69,144.57,100.0]
[1720002961463,3.7901,144.69,144.54,100.0]
[1720002961690,48.1901,144.69,144.5,100.0]
[1720002961987,44.4,144.65,144.48,638.9]
[1720002962279,4.7078,144.64,144.48,638.9]
[1720002962453,4.7078,144.64,144.44,100.0]
[1720002962649,44.4,144.61,144.45,100.0]
[1720002962881,44.4,144.61,144.44,100.0]
[1720002963090,4.7078,144.64,144.47,100.0]
[1720002963380,49.1078,144.64,144.47,100.0]
[1720002963761,49.1078,144.64,144.44,100.0]
[1720002963957,49.1078,144.64,144.43,100.0]
[1720002963958,44.4,144.6,144.41,200.0]
[1720002964256,3.7901,144.58,144.41,100.0]
[1720002964470,3.7901,144.58,144.37,100.0]
[1720002964471,44.4,144.56,144.37,100.0]
[1720002964667,44.4,144.56,144.38,100.0]
[1720002964867,4.7078,144.55,144.36,100.0]
[1720002965184,4.7078,144.55,144.4,100.0]
[1720002965568,4.7078,144.55,144.39,100.0]
[1720002965877,4.7078,144.55,144.39,200.0]
[1720002966083,4.7078,144.55,144.37,200.0]
[1720002966288,4.7078,144.55,144.37,100.0]
[1720002966485,44.37,144.53,144.35,200.0]
[1720002966654,0.9177,144.52,144.33,200.0]
[1720002967184,0.9177,144.52,144.37,100.0]
[1720002967358,0.9177,144.52,144.35,100.0]
[1720002967553,0.9177,144.52,144.34,100.0]
[1720002967865,0.9177,144.52,144.4,200.0]
[1720002968587,0.9177,144.52,144.44,100.0]
[1720002968766,0.9177,144.52,144.44,200.0]
[1720002969153,0.9177,144.52,144.46,100.0]
[1720002969883,0.9177,144.52,144.44,200.0]
[1720002970055,0.9177,144.52,144.44,100.0]
[1720002970259,0.9177,144.52,144.4,100.0]
[1720002970461,0.9177,144.52,144.41,100.0]
[1720002971390,0.9177,144.52,144.4,100.0]
[1720002971391,0.9177,144.52,144.39,100.0]
[1720002971786,0.9177,144.52,144.35,480.0]
[1720002971992,0.9177,144.52,144.35,100.0]
[1720002972300,0.9177,144.52,144.37,100.0]
[1720002972512,0.9177,144.52,144.34,100.0]
[1720002972513,0.9177,144.52,144.35,100.0]
[1720002973005,3.7901,144.5,144.31,103.58190684]
[1720002973167,44.37,144.47,144.31,3.58190684]
[1720002973489,44.37,144.47,144.31,103.58190684]
[1720002973962,44.37,144.47,144.32,100.0]
[1720002974482,44.37,144.47,144.31,103.58190684]
[1720002974483,0.9177,144.49,144.37,100.0]
[1720002974866,0.9177,144.49,144.31,3.58190684]
[1720002974867,0.9177,144.49,144.39,100.0]
[1720002975068,0.9177,144.49,144.42,100.0]
[1720002975583,0.9177,144.49,144.4,200.0]
[1720002975783,0.9177,144.49,144.36,6.6566]
[1720002975784,0.9177,144.49,144.39,100.0]
[1720002976867,0.9177,144.49,144.37,100.0]
[1720002977086,0.9177,144.49,144.38,200.0]
[1720002977691,0.9177,144.49,144.41,100.0]
[1720002977886,3.7901,144.5,144.42,100.0]
[1720002978089,0.9177,144.54,144.46,100.0]
[1720002978387,0.9177,144.54,144.44,100.0]
[1720002978591,0.9177,144.54,144.45,100.0]
[1720002978774,0.9177,144.54,144.46,100.0]
[1720002978972,0.9177,144.54,144.49,100.0]
[1720002979192,3.7901,144.56,144.45,200.0]
[1720002979393,3.7901,144.56,144.43,200.0]
[1720002979567,3.7901,144.56,144.4,60.7906]
[1720002979568,3.7901,144.56,144.45,200.0]
[1720002979895,3.7901,144.56,144.48,100.0]
[1720002981092,0.9177,144.59,144.5,100.0]
[1720002981270,0.9177,144.59,144.52,100.0]
[1720002981469,0.9177,144.59,144.5,100.0]
[1720002981875,0.9177,144.59,144.46,100.0]
[1720002982593,0.9177,144.59,144.48,100.0]
[1720002982795,0.9177,144.59,144.44,200.0]
[1720002983185,0.9177,144.59,144.46,200.0]
[1720002983374,0.9177,144.59,144.48,100.0]
[1720002983580,0.9177,144.59,144.46,200.0]
[1720002984097,0.9177,144.59,144.46,100.0]
[1720002986198,0.9177,144.59,144.47,2.3615406]
[1720002987185,0.9177,144.59,144.48,200.0]
[1720002987509,0.9177,144.59,144.47,2.3615406]
[1720002987880,0.9177,144.59,144.48,200.72429705]
[1720002988201,0.9177,144.59,144.47,2.3615406]
[1720002988202,0.9177,144.59,144.5,200.0]
[1720002988897,3.7901,144.62,144.52,200.0]
[1720002989089,3.7901,144.62,144.53,2.36056023]
[1720002989678,3.7901,144.62,144.54,100.0]
[1720002990088,3.7901,144.62,144.53,102.36056023]
[1720002990285,3.7901,144.62,144.55,2.36023362]
[1720002991178,0.9177,144.64,144.56,100.0]
[1720002991385,0.9177,144.64,144.55,2.36023362]
[1720002992199,0.9177,144.64,144.56,100.0]
[1720002992592,0.9177,144.64,144.57,2.3599071]
[1720002993903,0.9177,144.64,144.47,380.0]
[1720002994096,44.37,144.63,144.46,100.0]
[1720002994493,0.9177,144.62,144.46,100.0]
[1720002994705,0.9177,144.62,144.44,100.0]
[1720002994905,1.4302,144.58,144.44,100.0]
[1720002995285,1.4302,144.58,144.46,100.0]
[1720002995803,1.4302,144.58,144.46,200.0]
[1720002996510,1.4302,144.58,144.48,200.0]
[1720002996689,1.4302,144.58,144.5,200.0]
[1720002996886,1.4302,144.58,144.48,100.0]
[1720002997095,1.4302,144.58,144.47,100.0]
[1720002997609,1.4302,144.58,144.49,100.0]
[1720002997901,0.9177,144.62,144.53,100.0]
[1720002998097,0.9177,144.62,144.52,100.0]
[1720002998400,0.9177,144.62,144.5,100.0]
[1720002998603,0.9177,144.62,144.5,200.0]
[1720002999399,0.9177,144.62,144.5,100.0]
[1720002999589,0.9177,144.62,144.46,100.0]
[1720003000208,45.2877,144.62,144.46,100.0]
[1720003000786,45.2877,144.62,144.44,100.0]
[1720003001401,45.2877,144.62,144.48,100.0]
[1720003001900,45.2877,144.62,144.49,100.0]
[1720003002102,45.2877,144.62,144.47,100.0]
[1720003002301,45.2877,144.62,144.46,100.0]
[1720003002489,45.2877,144.62,144.4,41.4206]
[1720003002490,45.2877,144.62,144.48,100.0]
[1720003002888,45.2877,144.62,144.49,100.0]
[1720003003120,45.2877,144.62,144.48,100.0]
[1720003003293,45.2877,144.62,144.5,100.0]
[1720003003493,0.9177,144.62,144.5,100.0]
[1720003003700,0.9177,144.62,144.51,100.0]
[1720003004696,0.9177,144.62,144.47,100.0]
[1720003005026,44.37,144.61,144.46,100.0]
[1720003005398,44.37,144.61,144.43,100.0]
[1720003006495,1.4302,144.59,144.4,100.0]
[1720003006796,1.4302,144.59,144.39,380.0]
[1720003006797,1.4302,144.54,144.39,380.0]
[1720003007001,1.4302,144.54,144.37,100.0]
[1720003007699,44.37,144.52,144.34,222.0987]
[1720003007903,44.37,144.52,144.34,200.0]
[1720003008098,44.37,144.52,144.34,100.0]
[1720003008301,0.9177,144.51,144.35,100.0]
[1720003009000,0.9177,144.51,144.34,100.0]
[1720003009195,0.9177,144.51,144.31,100.0]
[1720003009395,0.9177,144.47,144.3,100.0]
[1720003010513,0.9177,144.47,144.31,100.0]
[1720003010920,0.9177,144.47,144.33,100.0]
[1720003011613,0.9177,144.47,144.35,100.0]
[1720003012112,0.9177,144.47,144.28,60.205]
[1720003012113,0.9177,144.47,144.37,100.0]
[1720003012499,0.9177,144.47,144.39,100.0]
[1720003012905,0.9177,144.47,144.38,200.0]
[1720003013918,0.9177,144.47,144.4,100.0]